[Event "Early-Titled-Tuesday-Blitz-March-26-2024"]
[Site "Chess.com"]
[Date "2024.03.26"]
[Round "7"]
[White "klimkoj"]
[Black "artooon"]
[Result "0-1"]
[WhiteElo "2818"]
[BlackElo "3026"]
[TimeControl "180+1"]
[EndTime "9:13:06 PDT"]
[Termination "artooon won by resignation"]

1. e4 {[%clk 0:03:00.9]} 1... e5 {[%clk 0:03:00.2]} 2. Nf3 {[%clk 0:03:00.7]}
2... Nc6 {[%clk 0:03:00.3]} 3. Bb5 {[%clk 0:03:00.4]} 3... a6 {[%clk 0:03:00.9]}
4. Ba4 {[%clk 0:03:00.6]} 4... Nf6 {[%clk 0:03:01.5]} 5. O-O {[%clk 0:03:01]}
5... b5 {[%clk 0:03:01]} 6. Bb3 {[%clk 0:03:01.2]} 6... Bc5 {[%clk 0:03:01.8]}
7. c3 {[%clk 0:03:01.1]} 7... d6 {[%clk 0:03:02.5]} 8. d4 {[%clk 0:03:01.7]}
8... Bb6 {[%clk 0:03:03.2]} 9. a4 {[%clk 0:03:02]} 9... Rb8 {[%clk 0:03:03.9]}
10. Qd3 {[%clk 0:03:02.3]} 10... O-O {[%clk 0:03:03.5]} 11. Bg5 {[%clk
0:03:02.2]} 11... h6 {[%clk 0:03:03.5]} 12. Bxf6 {[%clk 0:03:02.6]} 12... Qxf6
{[%clk 0:03:04.4]} 13. axb5 {[%clk 0:03:03.3]} 13... axb5 {[%clk 0:03:05.3]} 14.
Qxb5 {[%clk 0:03:03.9]} 14... Ne7 {[%clk 0:03:06]} 15. Nbd2 {[%clk 0:02:50]}
15... Ng6 {[%clk 0:03:05.8]} 16. g3 {[%clk 0:02:23]} 16... exd4 {[%clk
0:02:50.9]} 17. cxd4 {[%clk 0:02:14]} 17... Bh3 {[%clk 0:02:50.6]} 18. Qd3
{[%clk 0:02:14.7]} 18... Nf4 {[%clk 0:02:31]} 19. Qe3 {[%clk 0:02:03.9]} 19...
Bxf1 {[%clk 0:02:30.7]} 20. Nxf1 {[%clk 0:01:00.1]} 20... Ne6 {[%clk 0:02:30.6]}
21. Rd1 {[%clk 0:00:57.4]} 21... Bxd4 {[%clk 0:02:09.5]} 22. Rxd4 {[%clk
0:00:54.6]} 22... Rxb3 {[%clk 0:02:07.6]} 23. Rd3 {[%clk 0:00:44.6]} 23... Rxd3
{[%clk 0:02:06.9]} 24. Qxd3 {[%clk 0:00:45.5]} 24... Qxb2 {[%clk 0:02:07.4]} 25.
Ne3 {[%clk 0:00:43.3]} 25... Nc5 {[%clk 0:02:04.9]} 26. Qc4 {[%clk 0:00:19]}
26... Qb1+ {[%clk 0:02:05.3]} 27. Kg2 {[%clk 0:00:19.3]} 27... Qxe4 {[%clk
0:02:05.9]} 28. Qc3 {[%clk 0:00:19.7]} 28... Ne6 {[%clk 0:02:03.9]} 29. h4
{[%clk 0:00:15]} 29... c5 {[%clk 0:02:04.3]} 0-1

[Event "Early-Titled-Tuesday-Blitz-March-26-2024"]
[Site "Chess.com"]
[Date "2024.03.26"]
[Round "7"]
[White "gpsji27"]
[Black "ArturoCaceres"]
[Result "1-0"]
[WhiteElo "2357"]
[BlackElo "2432"]
[TimeControl "180+1"]
[EndTime "9:13:17 PDT"]
[Termination "gpsji27 won on time"]

1. d4 {[%clk 0:03:00.9]} 1... Nf6 {[%clk 0:02:56.8]} 2. Nf3 {[%clk 0:03:01.1]}
2... d6 {[%clk 0:02:52.2]} 3. Bg5 {[%clk 0:02:58.1]} 3... g6 {[%clk 0:02:43.8]}
4. c4 {[%clk 0:02:51.7]} 4... Bg7 {[%clk 0:02:42.2]} 5. Nc3 {[%clk 0:02:46.3]}
5... h6 {[%clk 0:02:40.5]} 6. Bh4 {[%clk 0:02:45.6]} 6... Nc6 {[%clk 0:02:18.3]}
7. e3 {[%clk 0:02:36.8]} 7... e5 {[%clk 0:02:03.2]} 8. dxe5 {[%clk 0:02:24.1]}
8... dxe5 {[%clk 0:01:50.9]} 9. Qxd8+ {[%clk 0:02:17.3]} 9... Kxd8 {[%clk
0:01:51.8]} 10. O-O-O+ {[%clk 0:02:17.1]} 10... Ke8 {[%clk 0:01:47.1]} 11. Nb5
{[%clk 0:02:13.3]} 11... Ke7 {[%clk 0:00:27]} 12. Nxc7 {[%clk 0:02:09.6]} 12...
Rb8 {[%clk 0:00:26.7]} 13. Nd5+ {[%clk 0:02:08.3]} 13... Ke6 {[%clk 0:00:26.3]}
14. Nc7+ {[%clk 0:01:51.3]} 14... Ke7 {[%clk 0:00:19.4]} 15. c5 {[%clk
0:01:45.4]} 15... Bf5 {[%clk 0:00:18]} 16. Nd5+ {[%clk 0:01:42.7]} 16... Ke6
{[%clk 0:00:17.2]} 17. Nxf6 {[%clk 0:01:37.3]} 17... Rbd8 {[%clk 0:00:15.3]} 18.
Bc4+ {[%clk 0:01:36.8]} 1-0

[Event "Early-Titled-Tuesday-Blitz-March-26-2024"]
[Site "Chess.com"]
[Date "2024.03.26"]
[Round "7"]
[White "vasblesk"]
[Black "GMAneta"]
[Result "1-0"]
[WhiteElo "2791"]
[BlackElo "2571"]
[TimeControl "180+1"]
[EndTime "9:13:18 PDT"]
[Termination "vasblesk won by checkmate"]

1. d4 {[%clk 0:03:00.9]} 1... d5 {[%clk 0:02:41.7]} 2. c4 {[%clk 0:02:57.7]}
2... c6 {[%clk 0:02:40]} 3. Nf3 {[%clk 0:02:57.4]} 3... Nf6 {[%clk 0:02:39.8]}
4. Qc2 {[%clk 0:02:57.1]} 4... g6 {[%clk 0:02:38.8]} 5. Bf4 {[%clk 0:02:53.7]}
5... Bg7 {[%clk 0:02:38.9]} 6. e3 {[%clk 0:02:53.5]} 6... O-O {[%clk 0:02:38.3]}
7. Be2 {[%clk 0:02:48.9]} 7... Bf5 {[%clk 0:02:30.8]} 8. Qb3 {[%clk 0:02:48.6]}
8... dxc4 {[%clk 0:02:25.5]} 9. Bxc4 {[%clk 0:02:47.7]} 9... b5 {[%clk
0:02:22.5]} 10. Be2 {[%clk 0:02:36.7]} 10... Qa5+ {[%clk 0:02:13.1]} 11. Nbd2
{[%clk 0:02:26.1]} 11... Ne4 {[%clk 0:02:05.8]} 12. a3 {[%clk 0:02:13.2]} 12...
Na6 {[%clk 0:01:59.9]} 13. Rd1 {[%clk 0:02:09.7]} 13... Nc7 {[%clk 0:01:32.6]}
14. O-O {[%clk 0:02:06.8]} 14... Nd5 {[%clk 0:01:32.3]} 15. Bg3 {[%clk
0:02:03.1]} 15... Rfc8 {[%clk 0:01:23]} 16. Nxe4 {[%clk 0:01:59.4]} 16... Bxe4
{[%clk 0:01:22.2]} 17. Nd2 {[%clk 0:01:57.2]} 17... Nf6 {[%clk 0:01:07.4]} 18.
Nxe4 {[%clk 0:01:56.9]} 18... Nxe4 {[%clk 0:01:07.5]} 19. Bh4 {[%clk 0:01:57.1]}
19... g5 {[%clk 0:01:04.4]} 20. Qc2 {[%clk 0:01:48.8]} 20... gxh4 {[%clk
0:00:50.7]} 21. Qxe4 {[%clk 0:01:47.7]} 21... h3 {[%clk 0:00:51.1]} 22. gxh3
{[%clk 0:01:45.1]} 22... b4 {[%clk 0:00:49.8]} 23. axb4 {[%clk 0:01:39.6]} 23...
Qxb4 {[%clk 0:00:49.4]} 24. Bd3 {[%clk 0:01:39.9]} 24... h6 {[%clk 0:00:43]} 25.
Kh1 {[%clk 0:01:36.2]} 25... Kf8 {[%clk 0:00:39.5]} 26. Rg1 {[%clk 0:01:34.6]}
26... Qd6 {[%clk 0:00:39.1]} 27. Rxg7 {[%clk 0:01:32.1]} 27... Kxg7 {[%clk
0:00:35.9]} 28. Qh7+ {[%clk 0:01:31.1]} 28... Kf6 {[%clk 0:00:29.9]} 29. Qxh6#
{[%clk 0:01:27.3]} 1-0

[Event "Early-Titled-Tuesday-Blitz-March-26-2024"]
[Site "Chess.com"]
[Date "2024.03.26"]
[Round "7"]
[White "Pertinhez76"]
[Black "FranklinAPalomo"]
[Result "0-1"]
[WhiteElo "2129"]
[BlackElo "2639"]
[TimeControl "180+1"]
[EndTime "9:13:25 PDT"]
[Termination "FranklinAPalomo won on time"]

1. e4 {[%clk 0:02:56.6]} 1... c5 {[%clk 0:03:00.5]} 2. Nf3 {[%clk 0:02:55.4]}
2... e6 {[%clk 0:03:01.4]} 3. d4 {[%clk 0:02:51.6]} 3... cxd4 {[%clk 0:03:02.3]}
4. Nxd4 {[%clk 0:02:51.8]} 4... a6 {[%clk 0:03:02.9]} 5. c4 {[%clk 0:02:46.5]}
5... Qc7 {[%clk 0:03:03.3]} 6. Nc3 {[%clk 0:02:45.2]} 6... b6 {[%clk 0:03:03.8]}
7. Be3 {[%clk 0:02:44.4]} 7... Bb7 {[%clk 0:03:04.4]} 8. Be2 {[%clk 0:02:44.8]}
8... Nf6 {[%clk 0:03:05]} 9. f3 {[%clk 0:02:42]} 9... Nc6 {[%clk 0:03:03.2]} 10.
Rc1 {[%clk 0:02:40.8]} 10... Ne5 {[%clk 0:03:02.9]} 11. b3 {[%clk 0:02:38]}
11... Ng6 {[%clk 0:03:02.6]} 12. O-O {[%clk 0:02:37]} 12... Bd6 {[%clk
0:03:02.1]} 13. g3 {[%clk 0:02:35.4]} 13... Bxg3 {[%clk 0:03:00.9]} 14. Kh1
{[%clk 0:02:25.3]} 14... Bxh2 {[%clk 0:02:55.9]} 15. Qd2 {[%clk 0:02:25]} 15...
Bf4 {[%clk 0:02:54]} 16. Rf2 {[%clk 0:02:05]} 16... h5 {[%clk 0:02:51.1]} 17. a4
{[%clk 0:01:46.7]} 17... Rc8 {[%clk 0:02:50.1]} 18. a5 {[%clk 0:01:46.5]} 18...
bxa5 {[%clk 0:02:49.7]} 19. Rg1 {[%clk 0:01:35.8]} 19... Bxe3 {[%clk 0:02:48.7]}
20. Qxe3 {[%clk 0:01:34.8]} 20... h4 {[%clk 0:02:46]} 21. Nd5 {[%clk 0:01:19.7]}
21... exd5 {[%clk 0:02:43.8]} 22. exd5+ {[%clk 0:01:19.9]} 22... Kf8 {[%clk
0:02:44.5]} 23. f4 {[%clk 0:01:12.1]} 23... Re8 {[%clk 0:02:44]} 24. Qc1 {[%clk
0:01:02.2]} 24... h3 {[%clk 0:02:36.2]} 25. Qa3+ {[%clk 0:00:54.7]} 25... Kg8
{[%clk 0:02:36.2]} 26. Nf5 {[%clk 0:00:53.9]} 26... h2 {[%clk 0:02:22.9]} 27.
Rg5 {[%clk 0:00:37]} 27... Rxe2 {[%clk 0:02:04]} 28. Rxe2 {[%clk 0:00:34.9]}
28... Qxf4 {[%clk 0:01:58.8]} 29. Re8+ {[%clk 0:00:03.5]} 29... Nxe8 {[%clk
0:01:57.2]} 30. Ne7+ {[%clk 0:00:03.5]} 30... Nxe7 {[%clk 0:01:55.8]} 31. Rxg7+
{[%clk 0:00:03.2]} 31... Kxg7 {[%clk 0:01:55.2]} 0-1

[Event "Early-Titled-Tuesday-Blitz-March-26-2024"]
[Site "Chess.com"]
[Date "2024.03.26"]
[Round "7"]
[White "GMG"]
[Black "AccioChess"]
[Result "1-0"]
[WhiteElo "2779"]
[BlackElo "2529"]
[TimeControl "180+1"]
[EndTime "9:13:26 PDT"]
[Termination "GMG won by resignation"]

1. Nf3 {[%clk 0:03:00.9]} 1... d5 {[%clk 0:02:59.4]} 2. g3 {[%clk 0:03:00.1]}
2... c5 {[%clk 0:02:59.6]} 3. Bg2 {[%clk 0:02:59.3]} 3... f6 {[%clk 0:02:59.5]}
4. c4 {[%clk 0:02:54]} 4... d4 {[%clk 0:02:58.9]} 5. b4 {[%clk 0:02:53.6]} 5...
e5 {[%clk 0:02:58.1]} 6. O-O {[%clk 0:02:51.3]} 6... cxb4 {[%clk 0:02:53.2]} 7.
e3 {[%clk 0:02:46]} 7... Nc6 {[%clk 0:02:51.9]} 8. a3 {[%clk 0:02:37.3]} 8...
bxa3 {[%clk 0:02:51.2]} 9. Nxa3 {[%clk 0:02:35.6]} 9... Bc5 {[%clk 0:02:50.8]}
10. exd4 {[%clk 0:02:17.4]} 10... Nxd4 {[%clk 0:02:49.4]} 11. Nxd4 {[%clk
0:02:16.6]} 11... Bxd4 {[%clk 0:02:50.3]} 12. Rb1 {[%clk 0:02:17.2]} 12... Ne7
{[%clk 0:02:48.2]} 13. Nb5 {[%clk 0:01:50.2]} 13... O-O {[%clk 0:02:40.7]} 14.
Ba3 {[%clk 0:01:43.9]} 14... Rf7 {[%clk 0:01:51.3]} 15. Nd6 {[%clk 0:01:39.2]}
15... Rf8 {[%clk 0:01:45.6]} 16. Nxb7 {[%clk 0:01:32.9]} 16... Bxb7 {[%clk
0:01:42]} 17. Rxb7 {[%clk 0:01:33.8]} 17... Ng6 {[%clk 0:01:27.3]} 18. Bxf8
{[%clk 0:01:14.1]} 18... Nxf8 {[%clk 0:01:28.2]} 19. Qb3 {[%clk 0:01:08.3]}
19... Bc5 {[%clk 0:01:19]} 20. Bd5+ {[%clk 0:01:04.9]} 20... Kh8 {[%clk
0:01:18.6]} 21. Rb1 {[%clk 0:01:04]} 21... Qc8 {[%clk 0:00:40.7]} 22. Rb5 {[%clk
0:00:56.8]} 1-0

[Event "Early-Titled-Tuesday-Blitz-March-26-2024"]
[Site "Chess.com"]
[Date "2024.03.26"]
[Round "7"]
[White "JAN2404"]
[Black "CURRUTACO59"]
[Result "0-1"]
[WhiteElo "1958"]
[BlackElo "2282"]
[TimeControl "180+1"]
[EndTime "9:13:26 PDT"]
[Termination "CURRUTACO59 won by resignation"]

1. e4 {[%clk 0:03:00.9]} 1... e5 {[%clk 0:02:57.6]} 2. Nc3 {[%clk 0:02:59.3]}
2... Nc6 {[%clk 0:02:53.3]} 3. Bc4 {[%clk 0:02:59.2]} 3... Bc5 {[%clk
0:02:52.4]} 4. d3 {[%clk 0:02:57.6]} 4... Nf6 {[%clk 0:02:50.6]} 5. Nf3 {[%clk
0:02:56.8]} 5... d6 {[%clk 0:02:50]} 6. Na4 {[%clk 0:02:54.5]} 6... Bb6 {[%clk
0:02:47.4]} 7. Nxb6 {[%clk 0:02:54.2]} 7... axb6 {[%clk 0:02:48.3]} 8. a3 {[%clk
0:02:53.5]} 8... h6 {[%clk 0:02:47.6]} 9. h3 {[%clk 0:02:53.1]} 9... Be6 {[%clk
0:02:46.9]} 10. Bb5 {[%clk 0:02:35]} 10... O-O {[%clk 0:02:45.4]} 11. O-O {[%clk
0:02:35.5]} 11... Ne7 {[%clk 0:02:41.2]} 12. c4 {[%clk 0:02:28.1]} 12... Ng6
{[%clk 0:02:38.5]} 13. Ba4 {[%clk 0:02:25.3]} 13... Nh5 {[%clk 0:02:31.5]} 14.
d4 {[%clk 0:02:19]} 14... Nhf4 {[%clk 0:02:29.8]} 15. d5 {[%clk 0:01:56.9]}
15... Bc8 {[%clk 0:02:18]} 16. b4 {[%clk 0:01:51.4]} 16... Qf6 {[%clk
0:02:15.2]} 17. Bxf4 {[%clk 0:01:43.5]} 17... Nxf4 {[%clk 0:02:14.5]} 18. Bc2
{[%clk 0:01:39.6]} 18... Bxh3 {[%clk 0:02:09.6]} 19. g3 {[%clk 0:01:09.7]} 19...
Bxf1 {[%clk 0:01:54.4]} 20. Qxf1 {[%clk 0:01:09.7]} 20... Nxd5 {[%clk
0:01:33.9]} 21. exd5 {[%clk 0:00:53.6]} 21... Qxf3 {[%clk 0:01:32.3]} 22. a4
{[%clk 0:00:51.5]} 22... e4 {[%clk 0:01:25]} 23. Qb1 {[%clk 0:00:50.6]} 23...
Rfe8 {[%clk 0:01:22.6]} 24. Bd1 {[%clk 0:00:42.6]} 24... Qc3 {[%clk 0:01:14.9]}
25. Qb3 {[%clk 0:00:31.2]} 25... Qxa1 {[%clk 0:01:12.1]} 0-1

[Event "Early-Titled-Tuesday-Blitz-March-26-2024"]
[Site "Chess.com"]
[Date "2024.03.26"]
[Round "7"]
[White "Korchmar_Vasiliy"]
[Black "SpeedofLight0"]
[Result "0-1"]
[WhiteElo "2703"]
[BlackElo "3061"]
[TimeControl "180+1"]
[EndTime "9:13:34 PDT"]
[Termination "SpeedofLight0 won on time"]

1. e4 {[%clk 0:03:00.9]} 1... Nc6 {[%clk 0:02:59.9]} 2. Nf3 {[%clk 0:03:00.4]}
2... d6 {[%clk 0:02:59.8]} 3. d4 {[%clk 0:02:59]} 3... Nf6 {[%clk 0:03:00]} 4.
Bd3 {[%clk 0:02:57.9]} 4... g6 {[%clk 0:02:59.5]} 5. h3 {[%clk 0:02:56.2]} 5...
Bg7 {[%clk 0:02:58.7]} 6. O-O {[%clk 0:02:56.3]} 6... O-O {[%clk 0:02:58.7]} 7.
Re1 {[%clk 0:02:56.1]} 7... e5 {[%clk 0:02:58.4]} 8. c3 {[%clk 0:02:56.2]} 8...
Re8 {[%clk 0:02:57.1]} 9. Bg5 {[%clk 0:02:45.6]} 9... h6 {[%clk 0:02:55.4]} 10.
Bh4 {[%clk 0:02:45.4]} 10... g5 {[%clk 0:02:49.4]} 11. Bg3 {[%clk 0:02:45.7]}
11... Nh5 {[%clk 0:02:49.5]} 12. Bb5 {[%clk 0:02:15.8]} 12... Nxg3 {[%clk
0:02:37.6]} 13. fxg3 {[%clk 0:02:15.8]} 13... Bd7 {[%clk 0:02:35.8]} 14. Bxc6
{[%clk 0:02:10]} 14... Bxc6 {[%clk 0:02:36.6]} 15. d5 {[%clk 0:02:10.3]} 15...
Bd7 {[%clk 0:02:36]} 16. g4 {[%clk 0:02:10.9]} 16... c6 {[%clk 0:02:33.5]} 17.
Qb3 {[%clk 0:01:53]} 17... cxd5 {[%clk 0:02:27.3]} 18. exd5 {[%clk 0:01:53.9]}
18... h5 {[%clk 0:02:16.6]} 19. Nh2 {[%clk 0:01:37.4]} 19... hxg4 {[%clk
0:02:11]} 20. hxg4 {[%clk 0:01:38.3]} 20... f5 {[%clk 0:02:07.1]} 21. gxf5
{[%clk 0:01:32.2]} 21... g4 {[%clk 0:02:06.2]} 22. Nd2 {[%clk 0:01:03.9]} 22...
Qh4 {[%clk 0:02:03.6]} 23. Ne4 {[%clk 0:00:53.9]} 23... Bxf5 {[%clk 0:01:59.8]}
24. Nxd6 {[%clk 0:00:51]} 24... Rf8 {[%clk 0:01:46.3]} 25. Nxf5 {[%clk 0:00:47]}
25... Rxf5 {[%clk 0:01:47]} 26. Rf1 {[%clk 0:00:33.9]} 26... Rh5 {[%clk
0:01:46.3]} 27. Nxg4 {[%clk 0:00:21.3]} 27... Qxg4 {[%clk 0:01:44.4]} 28. d6+
{[%clk 0:00:20.4]} 28... Kh8 {[%clk 0:01:43.9]} 29. Qxb7 {[%clk 0:00:14.7]}
29... Rg8 {[%clk 0:01:41.4]} 30. d7 {[%clk 0:00:03]} 30... Bh6 {[%clk
0:01:41.1]} 0-1

[Event "Early-Titled-Tuesday-Blitz-March-26-2024"]
[Site "Chess.com"]
[Date "2024.03.26"]
[Round "7"]
[White "dealshark"]
[Black "KetiTsatsalashvili"]
[Result "0-1"]
[WhiteElo "2293"]
[BlackElo "2447"]
[TimeControl "180+1"]
[EndTime "9:13:44 PDT"]
[Termination "KetiTsatsalashvili won by resignation"]

1. Nf3 {[%clk 0:03:00.9]} 1... Nf6 {[%clk 0:02:58.7]} 2. g3 {[%clk 0:03:00.6]}
2... g6 {[%clk 0:02:56.5]} 3. Bg2 {[%clk 0:03:00.6]} 3... Bg7 {[%clk 0:02:56.4]}
4. O-O {[%clk 0:03:01.4]} 4... O-O {[%clk 0:02:55.6]} 5. c4 {[%clk 0:02:59.6]}
5... c5 {[%clk 0:02:53.2]} 6. Nc3 {[%clk 0:02:58.7]} 6... Nc6 {[%clk 0:02:53]}
7. d4 {[%clk 0:02:58.4]} 7... cxd4 {[%clk 0:02:50.1]} 8. Nxd4 {[%clk 0:02:59.3]}
8... Nxd4 {[%clk 0:02:46.4]} 9. Qxd4 {[%clk 0:03:00.2]} 9... d6 {[%clk
0:02:46.8]} 10. Rb1 {[%clk 0:02:54.3]} 10... a6 {[%clk 0:02:45.5]} 11. b3 {[%clk
0:02:53]} 11... Bf5 {[%clk 0:02:44.3]} 12. Rb2 {[%clk 0:02:42.2]} 12... Ne4
{[%clk 0:02:40.3]} 13. Qxg7+ {[%clk 0:02:19.3]} 13... Kxg7 {[%clk 0:02:38.7]}
14. Nxe4 {[%clk 0:02:16.3]} 14... Bxe4 {[%clk 0:02:37]} 15. Bxe4 {[%clk
0:02:17.2]} 15... Rb8 {[%clk 0:02:32.1]} 16. Rd2 {[%clk 0:02:16.6]} 16... Qa5
{[%clk 0:02:28.2]} 17. Bb2+ {[%clk 0:02:15.7]} 17... f6 {[%clk 0:02:27.4]} 18.
Rd5 {[%clk 0:02:07.1]} 18... Qxa2 {[%clk 0:02:24.9]} 19. Ba1 {[%clk 0:01:58.5]}
19... Qxb3 {[%clk 0:02:24]} 20. Rb1 {[%clk 0:01:57.6]} 20... Qxc4 {[%clk
0:02:21.4]} 21. Rd4 {[%clk 0:01:58.1]} 21... Qxe2 {[%clk 0:02:17.2]} 22. Bd3
{[%clk 0:01:58.4]} 22... Qa2 {[%clk 0:02:08.3]} 23. Re4 {[%clk 0:01:56.7]} 23...
e5 {[%clk 0:02:08.1]} 24. Re2 {[%clk 0:01:53.5]} 24... Qd5 {[%clk 0:02:05.2]}
25. Be4 {[%clk 0:01:52.4]} 25... Qc4 {[%clk 0:02:04.6]} 26. Ree1 {[%clk
0:01:42.2]} 26... Rfc8 {[%clk 0:02:00.3]} 27. h4 {[%clk 0:01:38.7]} 27... b5
{[%clk 0:01:58.7]} 28. h5 {[%clk 0:01:38.6]} 28... d5 {[%clk 0:01:49.1]} 29. Bf3
{[%clk 0:01:36]} 29... d4 {[%clk 0:01:48.1]} 30. hxg6 {[%clk 0:01:34.8]} 30...
hxg6 {[%clk 0:01:48]} 31. Bb2 {[%clk 0:01:33]} 31... Qc2 {[%clk 0:01:41.5]} 32.
Be4 {[%clk 0:01:27.7]} 32... Qc4 {[%clk 0:01:35.7]} 33. Rec1 {[%clk 0:01:25.3]}
33... Qe6 {[%clk 0:01:34.7]} 34. Re1 {[%clk 0:01:20.3]} 34... Rh8 {[%clk
0:01:33.5]} 35. Kf1 {[%clk 0:01:12.8]} 35... b4 {[%clk 0:01:29.9]} 36. Bd3
{[%clk 0:01:06.9]} 36... Rh1+ {[%clk 0:01:22]} 37. Ke2 {[%clk 0:01:03.6]} 37...
Rxe1+ {[%clk 0:01:21.8]} 38. Rxe1 {[%clk 0:01:03]} 38... a5 {[%clk 0:01:18.1]}
39. Rc1 {[%clk 0:01:02.3]} 39... Rc8 {[%clk 0:01:14.7]} 40. Ra1 {[%clk
0:00:59.9]} 40... Qb3 {[%clk 0:01:09.7]} 41. Bc1 {[%clk 0:01:00.1]} 41... a4
{[%clk 0:01:08.8]} 42. Rb1 {[%clk 0:00:59.8]} 42... Qxb1 {[%clk 0:01:08]} 43.
Bh6+ {[%clk 0:00:56.6]} 43... Kxh6 {[%clk 0:01:06.2]} 0-1

[Event "Early-Titled-Tuesday-Blitz-March-26-2024"]
[Site "Chess.com"]
[Date "2024.03.26"]
[Round "7"]
[White "Kunalm64"]
[Black "ural58"]
[Result "0-1"]
[WhiteElo "2624"]
[BlackElo "2482"]
[TimeControl "180+1"]
[EndTime "9:13:46 PDT"]
[Termination "ural58 won by resignation"]

1. e4 {[%clk 0:02:59.4]} 1... d5 {[%clk 0:02:59.7]} 2. exd5 {[%clk 0:02:59.1]}
2... Qxd5 {[%clk 0:02:59.6]} 3. Nc3 {[%clk 0:02:59.1]} 3... Qa5 {[%clk
0:02:59.5]} 4. d4 {[%clk 0:02:57.9]} 4... Nf6 {[%clk 0:02:59.8]} 5. Nf3 {[%clk
0:02:57.3]} 5... Nc6 {[%clk 0:02:59.2]} 6. Bb5 {[%clk 0:02:18.1]} 6... Ne4
{[%clk 0:02:57.8]} 7. Bd2 {[%clk 0:01:46.6]} 7... Nxc3 {[%clk 0:02:56.9]} 8.
Bxc6+ {[%clk 0:01:46]} 8... bxc6 {[%clk 0:02:57.1]} 9. Bxc3 {[%clk 0:01:46.1]}
9... Qd5 {[%clk 0:02:57.4]} 10. h3 {[%clk 0:01:35.6]} 10... Ba6 {[%clk
0:02:56.9]} 11. Qd2 {[%clk 0:01:35.5]} 11... e6 {[%clk 0:02:54.5]} 12. b3 {[%clk
0:01:19.8]} 12... Ba3 {[%clk 0:02:53.7]} 13. Qe3 {[%clk 0:00:45.3]} 13... O-O
{[%clk 0:02:49.2]} 14. Bd2 {[%clk 0:00:44.9]} 14... c5 {[%clk 0:02:37.5]} 15. c4
{[%clk 0:00:43.4]} 15... cxd4 {[%clk 0:02:21.4]} 16. Qd3 {[%clk 0:00:30.6]}
16... c5 {[%clk 0:01:56.7]} 17. O-O {[%clk 0:00:29.8]} 17... Qf5 {[%clk
0:01:56.4]} 18. Qe2 {[%clk 0:00:28.2]} 18... Bb7 {[%clk 0:01:55.2]} 19. Ne5
{[%clk 0:00:20.2]} 19... Rad8 {[%clk 0:01:53.5]} 20. f3 {[%clk 0:00:18.4]} 20...
d3 {[%clk 0:01:47]} 21. Qe1 {[%clk 0:00:13.6]} 21... Bb2 {[%clk 0:01:46.2]} 22.
Ng4 {[%clk 0:00:13.6]} 22... h5 {[%clk 0:01:35.7]} 23. Ne3 {[%clk 0:00:12.3]}
23... Qg6 {[%clk 0:01:29.2]} 24. Rb1 {[%clk 0:00:12.4]} 24... Bd4 {[%clk
0:01:29.2]} 25. Kh1 {[%clk 0:00:12.8]} 25... e5 {[%clk 0:01:26.3]} 26. Qh4
{[%clk 0:00:11.4]} 26... f5 {[%clk 0:01:24.6]} 27. f4 {[%clk 0:00:10.7]} 27...
Bxe3 {[%clk 0:01:22.4]} 0-1

[Event "Early-Titled-Tuesday-Blitz-March-26-2024"]
[Site "Chess.com"]
[Date "2024.03.26"]
[Round "7"]
[White "MyDream003"]
[Black "KuzubovYuriy"]
[Result "0-1"]
[WhiteElo "2800"]
[BlackElo "2924"]
[TimeControl "180+1"]
[EndTime "9:13:50 PDT"]
[Termination "KuzubovYuriy won by resignation"]

1. e4 {[%clk 0:03:00.9]} 1... g6 {[%clk 0:02:58.7]} 2. d4 {[%clk 0:03:00.1]}
2... Bg7 {[%clk 0:02:59.4]} 3. Nf3 {[%clk 0:03:00.5]} 3... d6 {[%clk 0:02:59.7]}
4. c3 {[%clk 0:03:00.7]} 4... Nf6 {[%clk 0:02:59]} 5. Bd3 {[%clk 0:03:00.8]}
5... O-O {[%clk 0:02:59.1]} 6. O-O {[%clk 0:03:00.6]} 6... Nc6 {[%clk
0:02:59.3]} 7. d5 {[%clk 0:02:55.9]} 7... Nb8 {[%clk 0:02:58.4]} 8. h3 {[%clk
0:02:56.1]} 8... Nbd7 {[%clk 0:02:52.5]} 9. Bc2 {[%clk 0:02:56.5]} 9... Nc5
{[%clk 0:02:43.7]} 10. Re1 {[%clk 0:02:56.3]} 10... e5 {[%clk 0:02:44.1]} 11. c4
{[%clk 0:02:49.5]} 11... a5 {[%clk 0:02:39.2]} 12. Nc3 {[%clk 0:02:49.6]} 12...
Nh5 {[%clk 0:02:39]} 13. Bg5 {[%clk 0:02:40.1]} 13... Qe8 {[%clk 0:02:32.6]} 14.
b3 {[%clk 0:02:18.3]} 14... Bd7 {[%clk 0:02:15.7]} 15. a3 {[%clk 0:02:16.2]}
15... h6 {[%clk 0:02:08.2]} 16. Be3 {[%clk 0:02:13.5]} 16... f5 {[%clk
0:01:50.4]} 17. exf5 {[%clk 0:02:14.4]} 17... gxf5 {[%clk 0:01:49.7]} 18. Qd2
{[%clk 0:01:44.7]} 18... e4 {[%clk 0:01:17.9]} 19. Bxh6 {[%clk 0:00:56.4]} 19...
Qg6 {[%clk 0:01:13.2]} 20. Bxg7 {[%clk 0:00:34.9]} 20... exf3 {[%clk 0:01:11.3]}
21. g4 {[%clk 0:00:32.8]} 21... Qxg7 {[%clk 0:01:07.9]} 22. Kh2 {[%clk
0:00:24.4]} 22... fxg4 {[%clk 0:01:07.9]} 23. Rg1 {[%clk 0:00:25]} 23... g3+
{[%clk 0:01:05]} 24. fxg3 {[%clk 0:00:25.7]} 24... f2 {[%clk 0:01:05.4]} 25. Rg2
{[%clk 0:00:25.9]} 25... f1=Q {[%clk 0:01:03.2]} 26. Rxf1 {[%clk 0:00:24.6]}
26... Rxf1 {[%clk 0:01:03.3]} 0-1